fUST/lending_fUST_20240809
["ID","MTS","AMOUNT","RATE_DAILY","PERIOD"]
[334466856,1723132861946,10000.0,0.00025,60]
[334466857,1723132872557,10000.0,0.00025,60]
[334466858,1723132876621,273.37336231,9.9e-05,2]
[334466859,1723132892477,273.37336231,9.9e-05,2]
[334466860,1723132896502,9000.0,0.00025,60]
[334466861,1723132908273,273.37336231,9.9e-05,2]
[334466862,1723132924400,273.37336231,9.9e-05,2]
[334466863,1723132939656,3786.54291341,0.00012,2]
[334466864,1723132939707,273.37336231,9.9e-05,2]
[334466865,1723132940250,4712.76356463,0.00012,2]
[334466866,1723132949711,1492.87392022,0.00012,2]
[334466867,1723132955311,273.37336231,9.9e-05,2]
[334466868,1723132963938,154.74467129,0.00012,2]
[334466869,1723132969296,404.69022762,0.00012,2]
[334466870,1723132970620,273.37336231,9.9e-05,2]
[334466871,1723132975958,218.32720111,0.00014545,2]
[334466872,1723132986695,273.37336231,9.9e-05,2]
[334466873,1723132987677,3602.88765659,0.00014545,2]
[334466874,1723132989651,733.52081427,0.00014545,2]
[334466875,1723133002030,273.37336231,9.9e-05,2]
[334466876,1723133003941,229.79942363,0.00014545,2]
[334466877,1723133009656,1492.87392022,0.00014545,2]
[334466878,1723133017445,273.37336231,9.9e-05,2]
[334466879,1723133032813,273.37336231,9.9e-05,2]
[334466880,1723133049163,273.37336231,9.9e-05,2]
[334466881,1723133062669,1093.25424474,0.00012,2]
[334466882,1723133064849,273.37336231,9.9e-05,2]
[334466883,1723133081028,273.37336231,9.9e-05,2]
[334466884,1723133096446,273.37336231,9.9e-05,2]
[334466885,1723133112320,273.37336231,9.9e-05,2]
[334466886,1723133123297,517.36870483,0.00012,7]
[334466887,1723133128473,1412.75932075,0.00012,2]
[334466888,1723133128748,273.37336231,9.9e-05,2]
[334466889,1723133144208,273.37336231,9.9e-05,2]
[334466890,1723133159904,273.37336231,9.9e-05,2]
[334466891,1723133164116,243.58175356,0.00012,2]
[334466892,1723133164462,380.53724576,0.00012,2]
[334466893,1723133170850,158.9483105,0.00014247,2]
[334466894,1723133175230,273.37336231,9.9e-05,2]
[334466895,1723133181290,8000.0,0.0001515,2]
[334466896,1723133183276,517.36870483,0.00012,7]
[334466897,1723133191261,273.37336231,9.9e-05,2]
[334466898,1723133207126,273.37336231,9.9e-05,2]
[334466899,1723133223703,123.43924094,9.9e-05,2]
[334466900,1723133223735,149.93412137,9.9e-05,2]
[334466901,1723133239659,273.37336231,9.9e-05,2]
[334466902,1723133253290,269.54909522,0.00012,7]
[334466903,1723133256024,273.37336231,9.9e-05,2]
[334466904,1723133271800,273.37336231,9.9e-05,2]
[334466905,1723133287159,273.37336231,9.9e-05,2]
[334466906,1723133302571,273.37336231,9.9e-05,2]
[334466907,1723133318953,1611.38995866,0.00012,2]
[334466908,1723133319322,273.37336231,9.9e-05,2]
[334466909,1723133321049,156.95333335,0.00012,2]
[334466916,1723133336198,273.37336231,9.9e-05,2]
[334466917,1723133341486,816.39879119,0.00012,2]
[334466922,1723133351546,273.37336231,9.9e-05,2]
[334466923,1723133354152,-285.625,0.00018899,2]
[334466924,1723133354173,-295.97710066,0.0001891,2]
[334466925,1723133354194,-238.460566,0.00019883,2]
[334466926,1723133354216,-238.460566,0.00019889,2]
[334466927,1723133354237,-238.460566,0.00019894,2]
[334466928,1723133354258,-197.84248481,0.00019899,2]
[334466929,1723133366924,273.37336231,9.9e-05,2]
[334466937,1723133377699,1412.75932075,0.00014545,2]
[334466938,1723133379269,269.54909522,0.00014545,7]
[334466939,1723133382274,273.37336231,9.9e-05,2]
[334466940,1723133382686,3211.84243408,0.00014545,2]
[334466941,1723133383462,4668.64115681,0.00014545,2]
[334466942,1723133398244,273.37336231,9.9e-05,2]
[334466943,1723133399735,154.77557542,0.00014545,2]
[334466949,1723133413683,273.37336231,9.9e-05,2]
[334466950,1723133429091,273.37336231,9.9e-05,2]
[334467006,1723133432855,-263.93663241,0.0001753,2]
[334467008,1723133432865,-606.76357097,0.0001763,2]
[334467010,1723133432875,-380.98727375,0.00019477,2]
[334467012,1723133432888,-305.59981169,0.00019477,2]
[334467014,1723133432898,-40.61808119,0.00019899,2]
[334467016,1723133432908,-238.460566,0.00019904,2]
[334467018,1723133432918,-2.28954122,0.0001991,2]
[334467138,1723133438187,-236.17102478,0.0001991,2]
[334467140,1723133438198,-238.460566,0.00019915,2]
[334467142,1723133438207,-238.460566,0.0001992,2]
[334467144,1723133438216,-238.460566,0.00019925,2]
[334467146,1723133438225,-238.460566,0.00019931,2]
[334467149,1723133438244,-238.460566,0.00019936,2]
[334467151,1723133438255,-238.460566,0.00019941,2]
[334467153,1723133438264,-238.460566,0.00019946,2]
[334467155,1723133438274,-238.460566,0.00019952,2]
[334467156,1723133438283,-238.460566,0.00019957,2]
[334467157,1723133438293,-238.460566,0.00019962,2]
[334467158,1723133438303,-238.460566,0.00019967,2]
[334467159,1723133438312,-238.460566,0.00019972,2]
[334467160,1723133438321,-238.460566,0.00019978,2]
[334467161,1723133438331,-238.460566,0.00019983,2]
[334467163,1723133438340,-156.42647328,0.0002,2]
[334467165,1723133438350,-375.58169645,0.0002,2]
[334467167,1723133438360,-24900.0,0.00020297,2]
[334467169,1723133438370,-1700.04126908,0.000209,2]
[334467171,1723133438380,-419.49504469,0.00021,2]
[334467173,1723133438395,-208.652996,0.00021365,2]
[334467175,1723133438410,-208.652996,0.00021371,2]
[334467177,1723133438420,-208.652996,0.00021376,2]
[334467179,1723133438429,-208.652996,0.00021382,2]
[334467181,1723133438439,-208.652996,0.00021388,2]
[334467183,1723133438449,-208.652996,0.00021393,2]
[334467186,1723133438459,-208.652996,0.00021399,2]
[334467188,1723133438468,-208.652996,0.00021405,2]
[334467190,1723133438478,-208.652996,0.0002141,2]
[334467192,1723133438487,-208.652996,0.00021416,2]
[334467194,1723133438498,-208.652996,0.00021421,2]
[334467196,1723133438507,-208.652996,0.00021427,2]
[334467198,1723133438517,-208.652996,0.00021433,2]
[334467200,1723133438528,-208.652996,0.00021438,2]
[334467202,1723133438537,-208.652996,0.00021444,2]
[334467204,1723133438548,-208.652996,0.00021449,2]
[334467206,1723133438557,-208.652996,0.00021455,2]
[334467208,1723133438567,-208.652996,0.00021461,2]
[334467210,1723133438577,-208.652996,0.00021466,2]
[334467213,1723133438588,-208.652996,0.00021472,2]
[334467215,1723133438599,-160.64700877,0.00022,2]
[334467217,1723133438608,-170.0,0.00022,2]
[334467219,1723133438621,-164.610023,0.0002229,2]
[334467221,1723133438631,-172.17444394,0.00023,2]
[334467223,1723133438645,-881.97401853,0.00023011,2]
[334467225,1723133438654,-9588.81216364,0.00023436,2]
[334467226,1723133438664,-1700.04126908,0.00023475,2]
[334467227,1723133438673,-500.0,0.00023993,2]
[334467229,1723133438682,-500.0,0.00023993,2]
[334467230,1723133438693,-500.0,0.00023993,2]
[334467231,1723133438703,-500.0,0.00023993,2]
[334467232,1723133438714,-500.0,0.00023993,2]
[334467234,1723133438727,-500.0,0.00023993,2]
[334467236,1723133438737,-550.48761065,0.00023993,2]
[334467237,1723133438747,-500.0,0.00023993,2]
[334467238,1723133438757,-500.0,0.00023993,2]
[334467239,1723133438769,-500.0,0.00023993,2]
[334467240,1723133438778,-500.0,0.00023993,2]
[334467241,1723133438788,-500.0,0.00023993,2]
[334467242,1723133438797,-500.0,0.00023993,2]
[334467243,1723133438807,-500.0,0.00023993,2]
[334467244,1723133438816,-500.0,0.00023993,2]
[334467245,1723133438826,-4350.92455896,0.00024,30]
[334467246,1723133438837,-23201.42953338,0.00025,30]
[334467247,1723133438846,-402.58073778,0.00025238,2]
[334467248,1723133438856,-163.393278,0.00025405,2]
[334467249,1723133438865,-165.597616,0.00025539,2]
[334467250,1723133438875,-165.597616,0.00025546,2]
[334467251,1723133438884,-165.597616,0.00025554,2]
[334467252,1723133438898,-165.597616,0.00025561,2]
[334467253,1723133438908,-165.597616,0.00025569,2]
[334467254,1723133438917,-165.597616,0.00025576,2]
[334467255,1723133438927,-165.597616,0.00025584,2]
[334467256,1723133438936,-165.597616,0.00025591,2]
[334467257,1723133438946,-165.597616,0.00025599,2]
[334467258,1723133438956,-165.597616,0.00025606,2]
[334467259,1723133438965,-165.597616,0.00025614,2]
[334467260,1723133438974,-165.597616,0.00025621,2]
[334467261,1723133438984,-165.597616,0.00025629,2]
[334467262,1723133438993,-165.597616,0.00025636,2]
[334467263,1723133439002,-165.597616,0.00025644,2]
[334467264,1723133439012,-165.597616,0.00025651,2]
[334467265,1723133439023,-165.597616,0.00025659,2]
[334467266,1723133439035,-165.597616,0.00025666,2]
[334467267,1723133439045,-150.0,0.00025973,2]
[334467268,1723133439056,-197.58,0.00026019,3]
[334467269,1723133439067,-592.79,0.00026019,3]
[334467270,1723133439076,-200.0,0.00026027,2]
[334467271,1723133439086,-395.17,0.00026029,3]
[334467272,1723133439099,-9407.82,0.00026029,3]
[334467273,1723133439110,-7839.85,0.00026029,3]
[334467274,1723133439120,-11289.39,0.00026039,3]
[334467275,1723133439129,-39056.9278722,0.00026049,3]
[334467276,1723133439140,-1700.04126908,0.0002605,2]
[334467277,1723133439150,-4729.82632686,0.00026051,2]
[334467278,1723133439160,-150.0,0.00026251,2]
[334467279,1723133439169,-4729.82632686,0.0002634,2]
[334467280,1723133439178,-150.0,0.00026489,2]
[334467281,1723133439188,-207.1717265,0.00026575,2]
[334467282,1723133439197,-207.1717265,0.00026575,2]
[334467283,1723133439207,-150.0,0.00026607,2]
[334467284,1723133439216,-4729.82632686,0.00026648,2]
[334467285,1723133439226,-1363.91466198,0.00026709,2]
[334467286,1723133439236,-294.4971025,0.00026849,2]
[334467287,1723133439246,-294.4971025,0.00026849,2]
[334467288,1723133439255,-294.4971025,0.00026849,2]
[334467289,1723133439265,-211.9971686,0.00026849,2]
[334467290,1723133439274,-207.1717265,0.00026849,2]
[334467291,1723133439283,-284.78720614,0.0002685,2]
[334467292,1723133439293,-4729.82632686,0.00026898,2]
[334467293,1723133439303,-10000.0,0.00027,27]
[334467294,1723133439312,-150.112233,0.000271,6]
[334467295,1723133439322,-150.112233,0.000272,5]
[334467296,1723133439331,-150.112233,0.000272,5]
[334467297,1723133439341,-26680.17849741,0.000272,2]
[334467298,1723133439351,-2000.0,0.00027228,2]
[334467299,1723133439360,-2545.7585691,0.0002724,2]
[334467300,1723133439369,-237.41071525,0.00027264,2]
[334467301,1723133439379,-182.16328792,0.00027264,2]
[334467302,1723133439391,-500.0,0.00027264,2]
[334467303,1723133439403,-500.0,0.00027264,2]
[334467304,1723133439413,-514.89238124,0.00027264,2]
[334467305,1723133439423,-500.0,0.00027264,2]
[334467306,1723133439432,-500.0,0.00027264,2]
[334467307,1723133439445,-500.0,0.00027264,2]
[334467308,1723133439456,-500.0,0.00027264,2]
[334467309,1723133439466,-500.0,0.00027264,2]
[334467310,1723133439475,-500.0,0.00027264,2]
[334467311,1723133439485,-500.0,0.00027264,2]
[334467312,1723133439495,-500.0,0.00027264,2]
[334467313,1723133439505,-500.0,0.00027264,2]
[334467314,1723133439515,-500.0,0.00027264,2]
[334467316,1723133439525,-500.0,0.00027264,2]
[334467317,1723133439536,-500.0,0.00027264,2]
[334467318,1723133439546,-500.0,0.00027264,2]
[334467319,1723133439556,-234.03530311,0.00027264,2]
[334467320,1723133439568,-500.0,0.00027264,2]
[334467321,1723133439579,-500.0,0.00027264,2]
[334467323,1723133439589,-500.0,0.00027264,2]
[334467324,1723133439599,-500.0,0.00027264,2]
[334467325,1723133439609,-500.0,0.00027264,2]
[334467326,1723133439619,-500.0,0.00027264,2]
[334467327,1723133439628,-500.0,0.00027264,2]
[334467328,1723133439641,-500.0,0.00027264,2]
[334467330,1723133439650,-560.25078643,0.00027264,2]
[334467332,1723133439661,-44378.12936613,0.00027265,11]
[334467333,1723133439670,-39056.9278722,0.00027266,3]
[334467334,1723133439679,-39056.9278722,0.00027266,3]
[334467335,1723133439690,-151.0,0.00027266,7]
[334467336,1723133439703,-151.0,0.00027266,7]
[334467337,1723133439713,-151.0,0.00027266,7]
[334467338,1723133439723,-2005.0,0.00027269,10]
[334467339,1723133439734,-78113.8557443,0.00027277,3]
[334467340,1723133439743,-151.0,0.00027277,7]
[334467341,1723133439753,-151.0,0.00027277,7]
[334467342,1723133439763,-151.0,0.00027277,7]
[334467343,1723133439774,-178.72424,0.00027277,7]
[334467344,1723133439784,-151.0,0.00027277,7]
[334467345,1723133439793,-178.72424,0.00027277,7]
[334467346,1723133439802,-164.590346,0.00027277,7]
[334467347,1723133439811,-28506.12093419,0.00027287,3]
[334467383,1723133442517,-154.77557542,0.0001763,2]
[334467384,1723133442527,-500.0,0.00027264,2]
[334467385,1723133442536,-500.0,0.00027264,2]
[334467387,1723133442545,-641.39140164,0.00027264,2]
[334467389,1723133442555,-500.0,0.00027264,2]
[334467391,1723133442565,-500.0,0.00027264,2]
[334467393,1723133442575,-500.0,0.00027264,2]
[334467395,1723133442584,-60381.87906581,0.00027287,3]
[334467396,1723133442593,-151.0,0.00027287,7]
[334467397,1723133442605,-151.0,0.00027287,7]
[334467398,1723133442615,-151.0,0.00027287,7]
[334467399,1723133442626,-151.0,0.00027287,7]
[334467400,1723133442635,-206.78023,0.00027287,7]
[334467401,1723133442649,-151.0,0.00027287,7]
[334467403,1723133442659,-151.0,0.00027287,7]
[334467405,1723133442669,-151.0,0.00027287,7]
[334467407,1723133442679,-151.0,0.00027287,7]
[334467410,1723133442689,-152.242314,0.00027287,7]
[334467413,1723133442702,-152.242314,0.00027287,7]
[334467416,1723133442711,-151.0,0.00027287,7]
[334467419,1723133442721,-151.0,0.00027287,7]
[334467421,1723133442731,-151.0,0.00027287,7]
[334467423,1723133442742,-151.0,0.00027287,7]
[334467425,1723133442753,-151.0,0.00027287,7]
[334467427,1723133442762,-178.72424,0.00027287,7]
[334467428,1723133442772,-151.0,0.00027287,7]
[334467429,1723133442782,-178.72424,0.00027287,7]
[334467430,1723133442793,-2005.0,0.00027288,10]
[334467432,1723133442803,-2005.0,0.00027289,10]
[334467433,1723133442812,-2005.0,0.00027289,10]
[334467435,1723133442822,-693.72411053,0.00027289,10]
[334467437,1723133442831,-4729.8263269,0.00027291,2]
[334467439,1723133442840,-2000.0,0.00027297,2]
[334467441,1723133442850,-150.112234,0.000273,6]
[334467443,1723133442860,-3000.0,0.000273,2]
[334467444,1723133442871,-3000.0,0.000273,2]
[334467445,1723133442881,-150.112233,0.000273,9]
[334467446,1723133442894,-150.112233,0.000273,9]
[334467447,1723133442904,-1005.013645,0.000273,2]
[334467448,1723133442914,-3000.0,0.0002731,2]
[334467449,1723133442923,-3000.0,0.0002731,2]
[334467450,1723133442933,-3000.0,0.0002732,2]
[334467451,1723133442942,-3000.0,0.0002732,2]
[334467452,1723133442952,-151.0,0.0002732,7]
[334467453,1723133442962,-151.0,0.0002732,7]
[334467454,1723133442972,-39056.9278722,0.0002732,3]
[334467455,1723133442981,-3000.0,0.0002733,2]
[334467456,1723133442992,-3000.0,0.0002733,2]
[334467457,1723133443002,-151.0,0.0002733,7]
[334467458,1723133443012,-151.0,0.0002733,7]
[334467459,1723133443021,-151.0,0.0002733,7]
[334467460,1723133443031,-151.0,0.0002733,7]
[334467461,1723133443040,-151.0,0.0002733,7]
[334467462,1723133443049,-151.0,0.0002733,7]
[334467463,1723133443059,-178.72424,0.0002733,7]
[334467464,1723133443068,-178.72424,0.0002733,7]
[334467465,1723133443078,-1000.0,0.00027339,2]
[334467467,1723133443087,-3000.0,0.0002734,2]
[334467469,1723133443097,-3000.0,0.0002734,2]
[334467471,1723133443107,-152.242314,0.0002734,7]
[334467472,1723133443116,-152.242314,0.0002734,7]
[334467474,1723133443126,-151.0,0.0002734,7]
[334467476,1723133443136,-151.0,0.0002734,7]
[334467478,1723133443149,-3000.0,0.0002735,2]
[334467480,1723133443159,-151.0,0.0002735,7]
[334467482,1723133443169,-3000.0,0.0002735,2]
[334467484,1723133443179,-151.0,0.0002735,7]
[334467486,1723133443189,-151.532427,0.0002735,7]
[334467488,1723133443199,-151.0,0.0002736,7]
[334467490,1723133443208,-151.0,0.0002736,2]
[334467492,1723133443219,-151.0,0.0002736,7]
[334467494,1723133443229,-151.0,0.0002736,7]
[334467496,1723133443239,-3000.0,0.0002736,2]
[334467498,1723133443249,-3000.0,0.0002736,2]
[334467500,1723133443259,-3000.0,0.0002737,2]
[334467501,1723133443269,-3000.0,0.0002737,2]
[334467502,1723133443279,-151.0,0.00027376,7]
[334467503,1723133443289,-151.0,0.00027376,7]
[334467504,1723133443298,-155.05293,0.00027376,7]
[334467505,1723133443308,-3000.0,0.0002738,2]
[334467506,1723133443317,-3000.0,0.0002738,2]
[334467507,1723133443326,-153.0,0.00027382,2]
[334467508,1723133443336,-153.0,0.00027382,2]
[334467509,1723133443346,-153.0,0.00027382,2]
[334467510,1723133443356,-153.0,0.00027382,2]
[334467511,1723133443365,-153.0,0.00027382,2]
[334467512,1723133443375,-153.0,0.00027382,2]
[334467513,1723133443390,-153.0,0.00027382,2]
[334467514,1723133443400,-153.0,0.00027382,2]
[334467515,1723133443410,-153.0,0.00027382,2]
[334467516,1723133443421,-153.0,0.00027382,2]
[334467517,1723133443430,-153.0,0.00027382,2]
[334467518,1723133443440,-153.0,0.00027382,2]
[334467519,1723133443450,-39056.9278722,0.00027386,3]
[334467520,1723133443461,-151.0,0.00027386,7]
[334467521,1723133443471,-151.0,0.00027386,7]
[334467522,1723133443480,-151.0,0.00027387,7]
[334467523,1723133443489,-151.0,0.00027387,7]
[334467524,1723133443499,-151.0,0.00027387,2]
[334467525,1723133443508,-151.0,0.00027387,7]
[334467526,1723133443518,-38.11902664,0.00027387,7]
[334467527,1723133443531,-112.88097336,0.00027387,7]
[334467528,1723133443541,-151.0,0.00027387,7]
[334467529,1723133443550,-151.0,0.00027387,7]
[334467530,1723133443560,-151.0,0.00027387,7]
[334467531,1723133443569,-238.797175,0.00027387,7]
[334467532,1723133443578,-152.242314,0.00027387,7]
[334467533,1723133443589,-152.242314,0.00027387,7]
[334467534,1723133443598,-151.0,0.00027387,7]
[334467535,1723133443608,-151.0,0.00027387,7]
[334467536,1723133443618,-151.0,0.00027387,7]
[334467537,1723133443628,-153.587526,0.00027387,7]
[334467538,1723133443637,-178.72424,0.00027387,7]
[334467539,1723133443651,-178.72424,0.00027387,7]
[334467540,1723133443660,-395.16,0.00027389,3]
[334467541,1723133443669,-305.65463372,0.0002739,2]
[334467542,1723133443678,-3000.0,0.0002739,2]
[334467543,1723133443691,-3000.0,0.0002739,2]
[334467544,1723133443701,-150.01,0.00027396,2]
[334467545,1723133443710,-2993.00758584,0.00027396,2]
[334467546,1723133443719,-2605.08504403,0.00027396,2]
[334467547,1723133443730,-500.0,0.00027397,7]
[334467548,1723133443739,-378.011599,0.00027397,7]
[334467549,1723133443749,-625.25043798,0.00027397,7]
[334467550,1723133443759,-500.0,0.00027397,7]
[334467551,1723133443770,-500.0,0.00027397,7]
[334467552,1723133443780,-500.0,0.00027397,7]
[334467553,1723133443790,-500.0,0.00027397,7]
[334467554,1723133443799,-500.0,0.00027397,7]
[334467555,1723133443809,-500.0,0.00027397,7]
[334467556,1723133443819,-500.0,0.00027397,7]
[334467557,1723133443828,-500.0,0.00027397,7]
[334467558,1723133443838,-500.0,0.00027397,7]
[334467559,1723133443847,-263.3890245,0.00027397,7]
[334467560,1723133443858,-151.0,0.00027397,7]
[334467561,1723133443868,-151.0,0.00027397,7]
[334467562,1723133443878,-500.0,0.00027397,7]
[334467563,1723133443887,-500.0,0.00027397,7]
[334467564,1723133443899,-500.0,0.00027397,7]
[334467565,1723133443909,-523.91,0.00027397,7]
[334467566,1723133443919,-500.0,0.00027397,7]
[334467567,1723133443928,-500.0,0.00027397,7]
[334467568,1723133443937,-500.0,0.00027397,7]
[334467569,1723133443947,-562.74758183,0.00027397,7]
[334467570,1723133443956,-500.0,0.00027397,7]
[334467571,1723133443965,-500.0,0.00027397,7]
[334467572,1723133443975,-500.0,0.00027397,7]
[334467573,1723133443984,-500.0,0.00027397,7]
[334467574,1723133443993,-500.0,0.00027397,7]
[334467575,1723133444003,-500.0,0.00027397,7]
[334467576,1723133444012,-500.0,0.00027397,7]
[334467577,1723133444022,-500.0,0.00027397,7]
[334467578,1723133444032,-500.0,0.00027397,7]
[334467579,1723133444041,-500.0,0.00027397,7]
[334467580,1723133444050,-500.0,0.00027397,7]
[334467581,1723133444059,-500.0,0.00027397,7]
[334467582,1723133444070,-500.0,0.00027397,7]
[334467583,1723133444082,-500.0,0.00027397,7]
[334467584,1723133444092,-502.2640512,0.00027397,7]
[334467585,1723133444103,-500.0,0.00027397,7]
[334467586,1723133444115,-500.0,0.00027397,7]
[334467587,1723133444125,-500.0,0.00027397,7]
[334467588,1723133444135,-597.4393275,0.00027397,7]
[334467589,1723133444147,-500.0,0.00027397,7]
[334467590,1723133444156,-500.0,0.00027397,7]
[334467591,1723133444167,-500.40532915,0.00027397,7]
[334467592,1723133444177,-500.0,0.00027397,7]
[334467593,1723133444187,-500.0,0.00027397,7]
[334467594,1723133444196,-500.0,0.00027397,7]
[334467595,1723133444207,-514.52073945,0.00027397,7]
[334467596,1723133444218,-500.0,0.00027397,7]
[334467597,1723133444228,-962.96,0.00027397,7]
[334467598,1723133444240,-500.0,0.00027397,7]
[334467599,1723133444251,-502.27175704,0.00027397,7]
[334467600,1723133444263,-500.0,0.00027397,7]
[334467601,1723133444274,-500.0,0.00027397,7]
[334467602,1723133444285,-500.0,0.00027397,7]
[334467603,1723133444294,-500.0,0.00027397,7]
[334467604,1723133444304,-475.21694618,0.00027397,7]
[334467605,1723133444314,-583.78,0.00027397,7]
[334467606,1723133444325,-500.0,0.00027397,7]
[334467607,1723133444336,-500.0,0.00027397,7]
[334467608,1723133444347,-215.88,0.00027397,7]
[334467609,1723133444357,-500.0,0.00027397,7]
[334467610,1723133444367,-500.0,0.00027397,7]
[334467611,1723133444376,-500.0,0.00027397,7]
[334467612,1723133444386,-500.0,0.00027397,7]
[334467613,1723133444399,-500.0,0.00027397,7]
[334467614,1723133444408,-618.18,0.00027397,7]
[334467615,1723133444417,-500.0,0.00027397,7]
[334467616,1723133444427,-500.0,0.00027397,7]
[334467617,1723133444436,-500.0,0.00027397,7]
[334467618,1723133444445,-599.59,0.00027397,7]
[334467619,1723133444455,-500.0,0.00027397,7]
[334467620,1723133444465,-500.0,0.00027397,7]
[334467621,1723133444474,-500.0,0.00027397,7]
[334467622,1723133444484,-500.0,0.00027397,7]
[334467623,1723133444494,-180.17597878,0.00027397,7]
[334467624,1723133444518,-153.0,0.00027382,2]
[334467625,1723133444527,-319.82402122,0.00027397,7]
[334467626,1723133444536,-500.0,0.00027397,7]
[334467627,1723133444545,-500.0,0.00027397,7]
[334467628,1723133444554,-482.47364158,0.00027397,7]
[334467629,1723133444904,-17.52635842,0.00027397,7]
[334467630,1723133444914,-500.0,0.00027397,7]
[334467631,1723133444923,-224.11010816,0.00027397,7]
[334467632,1723133444934,-500.0,0.00027397,7]
[334467633,1723133444943,-25.44369115,0.00027397,7]
[334467723,1723133446672,273.37336231,9.9e-05,2]
[334467725,1723133461804,273.37336231,9.9e-05,2]
[334467726,1723133469288,10000.0,0.00027,120]
[334467727,1723133477004,273.37336231,9.9e-05,2]
[334467728,1723133482636,10000.0,0.00027,120]
[334467729,1723133493258,273.37336231,9.9e-05,2]
[334467730,1723133495000,5000.0,0.00027,120]
[334467731,1723133504075,10000.0,0.00025,60]
[334467732,1723133509619,273.37336231,9.9e-05,2]
[334467733,1723133525762,273.37336231,9.9e-05,2]
[334467734,1723133526618,8909.0,0.00025,60]
[334467735,1723133541407,273.37336231,9.9e-05,2]
[334467736,1723133556880,273.37336231,9.9e-05,2]
[334467737,1723133572306,273.37336231,9.9e-05,2]
[334467738,1723133575817,155.06919338,0.00013,2]
[334467739,1723133588211,273.37336231,9.9e-05,2]
[334467740,1723133592358,1136.04900917,0.00012,2]
[334467741,1723133604234,273.37336231,9.9e-05,2]
[334467742,1723133610501,269.54909522,0.00012,7]
[334467743,1723133621076,273.37336231,9.9e-05,2]
[334467744,1723133636940,273.37336231,9.9e-05,2]
[334467745,1723133652559,273.37336231,9.9e-05,2]
[334467746,1723133692715,1412.75932075,0.00012,2]
[334467747,1723133743710,240.34379841,0.00014545,2]
[334467748,1723133771479,163.319948,0.00014247,2]
[334467749,1723133956228,1492.87392022,0.00014247,2]
[334467750,1723133958536,45947.94,0.00027,120]
[334467751,1723134017782,269.54909522,0.00016532,7]
[334467760,1723134314429,2080.0,0.00025228,120]
[334467761,1723134314911,2080.0,0.00025218,120]
[334467762,1723134315417,2080.0,0.00025208,120]
[334467764,1723134343427,162.560967,0.00014247,2]
[334467766,1723134398552,167.10239701,0.00014247,2]
[334467767,1723134399062,1630.23174338,0.00014247,2]
[334467768,1723134402965,156.64123903,0.00014247,2]
[334467769,1723134407866,5120.08804112,0.00014247,2]
[334467770,1723134408151,301.7980963,0.00014247,2]
[334467771,1723134408193,19600.34451401,0.00014247,2]
[334467772,1723134408487,229.41169042,0.00014247,2]
[334467773,1723134408521,218.32669239,0.00014247,2]
[334467774,1723134409263,16364.34110381,0.00014247,2]
[334467775,1723134409333,1626.72585565,0.00014247,2]
[334467776,1723134411175,4711.14602353,0.00014247,2]
[334467777,1723134419217,2108.58934648,0.00014247,2]
[334467778,1723134434951,1456.0,0.0002499,120]
[334467779,1723134435417,1456.0,0.0002498,120]
[334467780,1723134435930,1456.0,0.0002497,120]
[334467781,1723134441218,3784.56616261,0.00014247,2]
[334467782,1723134471798,161.77727299,0.00014247,2]
[334467783,1723134493718,5098.84108832,0.00013,2]
[334467784,1723134503360,780.14345961,0.000125,2]